[Event "Titled Tuesday Blitz August 16 Late 2022"]
[White "Rostovtsev, Dmitry"]
[Black "Melikhov, Evgeny V."]
[WhiteFideId "34278320"]
[BlackFideId "4122046"]
[WhiteElo "2295"]
[BlackElo "1963"]
[Result "1-0"]
[Round "01"]
[TimeControl "180+1"]
[Date "2022.08.18"]
[WhiteClock "0:00:00"]
[BlackClock "0:00:00"]

1. e4 {[%clk 0:00:00]}  e5 {[%clk 0:00:00]} 2. Nf3 {[%clk 0:00:00]}  Nc6 {[%clk 0:00:00]} 3. Bc4 {[%clk 0:00:00]}  Nf6 {[%clk 0:00:00]} 4. d3 {[%clk 0:00:00]}  Be7 {[%clk 0:00:00]} 5. c3 {[%clk 0:00:00]}  d6 {[%clk 0:00:00]} 6. h3 {[%clk 0:00:00]}  O-O {[%clk 0:00:00]} 7. Nbd2 {[%clk 0:00:00]}  Na5 {[%clk 0:00:00]} 8. Bb5 {[%clk 0:00:00]}  a6 {[%clk 0:00:00]} 9. Ba4 {[%clk 0:00:00]}  b5 {[%clk 0:00:00]} 10. Bc2 {[%clk 0:00:00]}  c5 {[%clk 0:00:00]} 11. O-O {[%clk 0:00:00]}  Bb7 {[%clk 0:00:00]} 12. Re1 {[%clk 0:00:00]}  Re8 {[%clk 0:00:00]} 13. d4 {[%clk 0:00:00]}  cxd4 {[%clk 0:00:00]} 14. cxd4 {[%clk 0:00:00]}  Qc7 {[%clk 0:00:00]} 15. d5 {[%clk 0:00:00]}  Rec8 {[%clk 0:00:00]} 16. Bd3 {[%clk 0:00:00]}  Nc4 {[%clk 0:00:00]} 17. b3 {[%clk 0:00:00]}  Nxd2 {[%clk 0:00:00]} 18. Bxd2 {[%clk 0:00:00]}  h6 {[%clk 0:00:00]} 19. Qe2 {[%clk 0:00:00]}  Qd8 {[%clk 0:00:00]} 20. a4 {[%clk 0:00:00]}  bxa4 {[%clk 0:00:00]} 21. Rxa4 {[%clk 0:00:00]}  Nd7 {[%clk 0:00:00]} 22. Bxa6 {[%clk 0:00:00]}  Bxa6 {[%clk 0:00:00]} 23. Rxa6 {[%clk 0:00:00]}  Rxa6 {[%clk 0:00:00]} 24. Qxa6 {[%clk 0:00:00]}  Nc5 {[%clk 0:00:00]} 25. Qc4 {[%clk 0:00:00]}  Nd7 {[%clk 0:00:00]} 26. Qe2 {[%clk 0:00:00]}  Rc2 {[%clk 0:00:00]} 27. b4 {[%clk 0:00:00]}  Rb2 {[%clk 0:00:00]} 28. Qd3 {[%clk 0:00:00]}  Qb6 {[%clk 0:00:00]} 29. Rb1 {[%clk 0:00:00]}  Rxb1+ {[%clk 0:00:00]} 30. Qxb1 {[%clk 0:00:00]}  Qb5 {[%clk 0:00:00]} 31. Ne1 {[%clk 0:00:00]}  Bd8 {[%clk 0:00:00]} 32. Qd3 {[%clk 0:00:00]}  Qa4 {[%clk 0:00:00]} 33. Qc2 {[%clk 0:00:00]}  Qb5 {[%clk 0:00:00]} 34. Qc6 {[%clk 0:00:00]}  Qxc6 {[%clk 0:00:00]} 35. dxc6 {[%clk 0:00:00]}  Nf6 {[%clk 0:00:00]} 36. f3 {[%clk 0:00:00]}  Kf8 {[%clk 0:00:00]} 37. b5 {[%clk 0:00:00]}  Bb6+ {[%clk 0:00:00]} 38. Kf1 {[%clk 0:00:00]}  Ke8 {[%clk 0:00:00]} 39. Nd3 {[%clk 0:00:00]}  Kd8 {[%clk 0:00:00]} 40. Nb4 {[%clk 0:00:00]}  Kc7 {[%clk 0:00:00]} 41. Ke2 {[%clk 0:00:00]}  Bc5 {[%clk 0:00:00]} 42. Na6+ {[%clk 0:00:00]}  Kb6 {[%clk 0:00:00]} 43. Ba5+ {[%clk 0:00:00]}  Kxb5 {[%clk 0:00:00]} 44. c7 {[%clk 0:00:00]} 1-0


[Site "https://www.chess.com"]

[Event "Titled Tuesday Blitz August 16 Late 2022"]
[White "Rytenko, Vsevolod"]
[Black "Novikova, Galina"]
[WhiteFideId "14133040"]
[BlackFideId "4157095"]
[WhiteElo "2120"]
[BlackElo "1923"]
[Result "1-0"]
[Round "01"]
[TimeControl "180+1"]
[Date "2022.08.18"]
[WhiteClock "0:00:00"]
[BlackClock "0:00:00"]

1. e4 {[%clk 0:00:00]}  e6 {[%clk 0:00:00]} 2. d3 {[%clk 0:00:00]}  d5 {[%clk 0:00:00]} 3. Nd2 {[%clk 0:00:00]}  Nf6 {[%clk 0:00:00]} 4. Ngf3 {[%clk 0:00:00]}  g6 {[%clk 0:00:00]} 5. e5 {[%clk 0:00:00]}  Nfd7 {[%clk 0:00:00]} 6. d4 {[%clk 0:00:00]}  Bg7 {[%clk 0:00:00]} 7. c3 {[%clk 0:00:00]}  c5 {[%clk 0:00:00]} 8. h4 {[%clk 0:00:00]}  h5 {[%clk 0:00:00]} 9. Bd3 {[%clk 0:00:00]}  Nc6 {[%clk 0:00:00]} 10. O-O {[%clk 0:00:00]}  O-O {[%clk 0:00:00]} 11. a3 {[%clk 0:00:00]}  Qe8 {[%clk 0:00:00]} 12. b4 {[%clk 0:00:00]}  c4 {[%clk 0:00:00]} 13. Bc2 {[%clk 0:00:00]}  f6 {[%clk 0:00:00]} 14. exf6 {[%clk 0:00:00]}  Nxf6 {[%clk 0:00:00]} 15. Re1 {[%clk 0:00:00]}  Ng4 {[%clk 0:00:00]} 16. Nf1 {[%clk 0:00:00]}  Qd8 {[%clk 0:00:00]} 17. Bxg6 {[%clk 0:00:00]}  e5 {[%clk 0:00:00]} 18. Bg5 {[%clk 0:00:00]}  Bf6 {[%clk 0:00:00]} 19. dxe5 {[%clk 0:00:00]}  Bxg5 {[%clk 0:00:00]} 20. hxg5 {[%clk 0:00:00]}  Be6 {[%clk 0:00:00]} 21. Bxh5 {[%clk 0:00:00]}  Rxf3 {[%clk 0:00:00]} 22. Qxf3 {[%clk 0:00:00]}  Qxg5 {[%clk 0:00:00]} 23. Bxg4 {[%clk 0:00:00]}  Bxg4 {[%clk 0:00:00]} 24. Qg3 {[%clk 0:00:00]}  Qg7 {[%clk 0:00:00]} 25. Nh2 {[%clk 0:00:00]}  Be6 {[%clk 0:00:00]} 26. Qxg7+ {[%clk 0:00:00]}  Kxg7 {[%clk 0:00:00]} 27. f3 {[%clk 0:00:00]}  d4 {[%clk 0:00:00]} 28. cxd4 {[%clk 0:00:00]}  Nxd4 {[%clk 0:00:00]} 29. Rac1 {[%clk 0:00:00]}  b5 {[%clk 0:00:00]} 30. Kf2 {[%clk 0:00:00]}  a5 {[%clk 0:00:00]} 31. Red1 {[%clk 0:00:00]}  Nb3 {[%clk 0:00:00]} 32. Rb1 {[%clk 0:00:00]}  axb4 {[%clk 0:00:00]} 33. axb4 {[%clk 0:00:00]}  Ra2+ {[%clk 0:00:00]} 34. Kg3 {[%clk 0:00:00]}  c3 {[%clk 0:00:00]} 35. Rbc1 {[%clk 0:00:00]}  Nxc1 {[%clk 0:00:00]} 36. Rxc1 {[%clk 0:00:00]}  c2 {[%clk 0:00:00]} 37. Ng4 {[%clk 0:00:00]}  Bb3 {[%clk 0:00:00]} 38. Ne3 {[%clk 0:00:00]}  Rb2 {[%clk 0:00:00]} 39. Nf5+ {[%clk 0:00:00]}  Kg6 {[%clk 0:00:00]} 40. Nd4 {[%clk 0:00:00]}  Rb1 {[%clk 0:00:00]} 41. Nxb3 {[%clk 0:00:00]}  Rxb3 {[%clk 0:00:00]} 42. Rxc2 {[%clk 0:00:00]}  Rxb4 {[%clk 0:00:00]} 43. f4 {[%clk 0:00:00]}  Rb3+ {[%clk 0:00:00]} 44. Kg4 {[%clk 0:00:00]}  b4 {[%clk 0:00:00]} 45. Rc6+ {[%clk 0:00:00]}  Kf7 {[%clk 0:00:00]} 46. Kf5 {[%clk 0:00:00]}  Rb1 {[%clk 0:00:00]} 47. Rc7+ {[%clk 0:00:00]}  Ke8 {[%clk 0:00:00]} 48. Rb7 {[%clk 0:00:00]}  b3 {[%clk 0:00:00]} 49. Ke6 {[%clk 0:00:00]}  Kd8 {[%clk 0:00:00]} 50. f5 {[%clk 0:00:00]}  Kc8 {[%clk 0:00:00]} 51. Rb4 {[%clk 0:00:00]}  Kc7 {[%clk 0:00:00]} 52. f6 {[%clk 0:00:00]}  Kc6 {[%clk 0:00:00]} 53. f7 {[%clk 0:00:00]}  Kc5 {[%clk 0:00:00]} 54. f8=Q+ {[%clk 0:00:00]} 1-0


[Site "https://www.chess.com"]

[Event "Titled Tuesday Blitz August 16 Late 2022"]
[White "Shimanov, Aleksandr"]
[Black "Voege, Tobias"]
[WhiteFideId "4198603"]
[BlackFideId "1270513"]
[WhiteElo "2605"]
[BlackElo "2360"]
[Result "1-0"]
[Round "01"]
[TimeControl "180+1"]
[Date "2022.08.16"]
[WhiteClock "0:01:12"]
[BlackClock "0:00:30"]

1. e4 {[%clk 0:02:59]}  e6 {[%clk 0:02:58]} 2. Qe2 {[%clk 0:02:58]}  c5 {[%clk 0:02:57]} 3. Nf3 {[%clk 0:02:57]}  Nc6 {[%clk 0:02:56]} 4. g3 {[%clk 0:02:57]}  g6 {[%clk 0:02:56]} 5. Bg2 {[%clk 0:02:35]}  Bg7 {[%clk 0:02:56]} 6. O-O {[%clk 0:02:36]}  Nge7 {[%clk 0:02:56]} 7. e5 {[%clk 0:02:33]}  O-O {[%clk 0:02:51]} 8. Nc3 {[%clk 0:02:32]}  d5 {[%clk 0:02:37]} 9. exd6 {[%clk 0:02:32]}  Qxd6 {[%clk 0:02:37]} 10. Ne4 {[%clk 0:02:31]}  Qc7 {[%clk 0:02:38]} 11. Nxc5 {[%clk 0:02:23]}  Nd4 {[%clk 0:02:37]} 12. Nxd4 {[%clk 0:02:23]}  Qxc5 {[%clk 0:02:35]} 13. c3 {[%clk 0:02:21]}  Bxd4 {[%clk 0:02:33]} 14. cxd4 {[%clk 0:02:22]}  Qxd4 {[%clk 0:02:33]} 15. d3 {[%clk 0:02:22]}  Rd8 {[%clk 0:02:32]} 16. Bf4 {[%clk 0:02:11]}  Nf5 {[%clk 0:02:20]} 17. Be5 {[%clk 0:02:09]}  Qb4 {[%clk 0:02:06]} 18. Bf6 {[%clk 0:02:03]}  Rd7 {[%clk 0:02:02]} 19. g4 {[%clk 0:02:00]}  Nd4 {[%clk 0:01:58]} 20. Qe4 {[%clk 0:01:49]}  Nc2 {[%clk 0:01:54]} 21. Rac1 {[%clk 0:01:47]}  Qxe4 {[%clk 0:01:53]} 22. dxe4 {[%clk 0:01:47]}  Nb4 {[%clk 0:01:46]} 23. Rfd1 {[%clk 0:01:46]}  Nc6 {[%clk 0:01:35]} 24. e5 {[%clk 0:01:42]}  h6 {[%clk 0:01:24]} 25. b4 {[%clk 0:01:33]}  a6 {[%clk 0:01:22]} 26. a4 {[%clk 0:01:32]}  Nd4 {[%clk 0:01:07]} 27. Kf1 {[%clk 0:01:27]}  Rb8 {[%clk 0:00:58]} 28. Rd3 {[%clk 0:01:18]}  Nc6 {[%clk 0:00:43]} 29. Rcd1 {[%clk 0:01:16]}  Rxd3 {[%clk 0:00:30]} 30. Rxd3 {[%clk 0:01:16]}  g5 {[%clk 0:00:30]} 31. b5 {[%clk 0:01:12]} 1-0


[Site "https://www.chess.com"]

[Event "Titled Tuesday Blitz August 16 Late 2022"]
[White "Soham Kamotra"]
[Black "Riehle, Marco"]
[WhiteFideId "46647490"]
[BlackFideId "12904392"]
[WhiteElo "2082"]
[BlackElo "2462"]
[Result "1-0"]
[Round "01"]
[TimeControl "180+1"]
[Date "2022.08.16"]
[WhiteClock "0:00:26"]
[BlackClock "0:00:56"]

1. c4 {[%clk 0:02:59]}  e6 {[%clk 0:02:59]} 2. g3 {[%clk 0:02:57]}  d5 {[%clk 0:02:59]} 3. Bg2 {[%clk 0:02:58]}  Nf6 {[%clk 0:02:59]} 4. Nf3 {[%clk 0:02:59]}  c5 {[%clk 0:02:59]} 5. O-O {[%clk 0:03:00]}  Nc6 {[%clk 0:02:59]} 6. cxd5 {[%clk 0:02:58]}  Nxd5 {[%clk 0:02:58]} 7. d4 {[%clk 0:02:57]}  Be7 {[%clk 0:02:58]} 8. Nc3 {[%clk 0:02:45]}  O-O {[%clk 0:02:52]} 9. Nxd5 {[%clk 0:02:43]}  Qxd5 {[%clk 0:02:51]} 10. dxc5 {[%clk 0:02:26]}  Qxc5 {[%clk 0:02:50]} 11. Be3 {[%clk 0:02:24]}  Qb5 {[%clk 0:02:48]} 12. Qb3 {[%clk 0:02:01]}  Qxb3 {[%clk 0:02:41]} 13. axb3 {[%clk 0:02:02]}  Bd7 {[%clk 0:02:42]} 14. Nd4 {[%clk 0:01:57]}  a6 {[%clk 0:02:39]} 15. Nxc6 {[%clk 0:01:53]}  Bxc6 {[%clk 0:02:37]} 16. Bxc6 {[%clk 0:01:53]}  bxc6 {[%clk 0:02:38]} 17. Rfc1 {[%clk 0:01:53]}  Rfc8 {[%clk 0:02:36]} 18. Ra4 {[%clk 0:01:47]}  h6 {[%clk 0:02:34]} 19. Bd4 {[%clk 0:01:44]}  Bf6 {[%clk 0:02:27]} 20. Bxf6 {[%clk 0:01:40]}  gxf6 {[%clk 0:02:28]} 21. Rc3 {[%clk 0:01:21]}  a5 {[%clk 0:02:22]} 22. Kf1 {[%clk 0:01:20]}  Kf8 {[%clk 0:02:21]} 23. Rac4 {[%clk 0:01:14]}  Ra6 {[%clk 0:02:20]} 24. Ke1 {[%clk 0:01:12]}  Ke7 {[%clk 0:02:20]} 25. Kd2 {[%clk 0:01:12]}  Rb6 {[%clk 0:02:16]} 26. Rc5 {[%clk 0:01:06]}  Ra6 {[%clk 0:02:16]} 27. Kc2 {[%clk 0:01:05]}  f5 {[%clk 0:02:14]} 28. R5c4 {[%clk 0:01:03]}  e5 {[%clk 0:02:13]} 29. Rh4 {[%clk 0:01:00]}  Rh8 {[%clk 0:02:11]} 30. Ra4 {[%clk 0:00:58]}  Kd6 {[%clk 0:02:05]} 31. b4 {[%clk 0:00:58]}  Rha8 {[%clk 0:02:02]} 32. Rca3 {[%clk 0:00:56]}  h5 {[%clk 0:01:44]} 33. Rxa5 {[%clk 0:00:51]}  Rxa5 {[%clk 0:01:44]} 34. bxa5 {[%clk 0:00:51]}  h4 {[%clk 0:01:42]} 35. a6 {[%clk 0:00:50]}  Kc5 {[%clk 0:01:38]} 36. Kd3 {[%clk 0:00:48]}  h3 {[%clk 0:01:36]} 37. f4 {[%clk 0:00:47]}  f6 {[%clk 0:01:33]} 38. e4 {[%clk 0:00:44]}  exf4 {[%clk 0:01:22]} 39. gxf4 {[%clk 0:00:45]}  Kb6 {[%clk 0:01:22]} 40. a7 {[%clk 0:00:31]}  Kc5 {[%clk 0:01:13]} 41. Ke3 {[%clk 0:00:30]}  Kb4 {[%clk 0:01:09]} 42. e5 {[%clk 0:00:29]}  Kc5 {[%clk 0:00:55]} 43. exf6 {[%clk 0:00:25]}  Kd6 {[%clk 0:00:56]} 44. Kd4 {[%clk 0:00:25]}  Ke6 {[%clk 0:00:55]} 45. Kc5 {[%clk 0:00:26]}  Kxf6 {[%clk 0:00:56]} 46. Kxc6 {[%clk 0:00:27]}  Kg6 {[%clk 0:00:55]} 47. Kb7 {[%clk 0:00:27]}  Rg8 {[%clk 0:00:56]} 48. Rg3+ {[%clk 0:00:26]} 1-0


[Site "https://www.chess.com"]

[Event "Titled Tuesday Blitz August 16 Late 2022"]
[White "Sourath Biswas"]
[Black "Rengifo Blancas, Renzo Jhonathan"]
[WhiteFideId "35091484"]
[BlackFideId "3807185"]
[WhiteElo "1777"]
[BlackElo "2058"]
[Result "1-0"]
[Round "01"]
[TimeControl "180+1"]
[Date "2022.08.18"]
[WhiteClock "0:00:00"]
[BlackClock "0:00:00"]

1. d4 {[%clk 0:00:00]}  d5 {[%clk 0:00:00]} 2. Bf4 {[%clk 0:00:00]}  c6 {[%clk 0:00:00]} 3. e3 {[%clk 0:00:00]}  Nf6 {[%clk 0:00:00]} 4. Nf3 {[%clk 0:00:00]}  Bf5 {[%clk 0:00:00]} 5. c4 {[%clk 0:00:00]}  e6 {[%clk 0:00:00]} 6. Qb3 {[%clk 0:00:00]}  Qb6 {[%clk 0:00:00]} 7. c5 {[%clk 0:00:00]}  Qxb3 {[%clk 0:00:00]} 8. axb3 {[%clk 0:00:00]}  Nbd7 {[%clk 0:00:00]} 9. b4 {[%clk 0:00:00]}  a6 {[%clk 0:00:00]} 10. h3 {[%clk 0:00:00]}  Be7 {[%clk 0:00:00]} 11. Nbd2 {[%clk 0:00:00]}  O-O {[%clk 0:00:00]} 12. Nb3 {[%clk 0:00:00]}  Bd8 {[%clk 0:00:00]} 13. Bd6 {[%clk 0:00:00]}  Re8 {[%clk 0:00:00]} 14. Na5 {[%clk 0:00:00]}  Bxa5 {[%clk 0:00:00]} 15. bxa5 {[%clk 0:00:00]}  Ne4 {[%clk 0:00:00]} 16. Bh2 {[%clk 0:00:00]}  f6 {[%clk 0:00:00]} 17. Nh4 {[%clk 0:00:00]}  Bg6 {[%clk 0:00:00]} 18. Nxg6 {[%clk 0:00:00]}  hxg6 {[%clk 0:00:00]} 19. f3 {[%clk 0:00:00]}  Ng5 {[%clk 0:00:00]} 20. Bd3 {[%clk 0:00:00]}  Kf7 {[%clk 0:00:00]} 21. h4 {[%clk 0:00:00]}  Nh7 {[%clk 0:00:00]} 22. h5 {[%clk 0:00:00]}  f5 {[%clk 0:00:00]} 23. hxg6+ {[%clk 0:00:00]}  Kxg6 {[%clk 0:00:00]} 24. Bd6 {[%clk 0:00:00]}  Nhf6 {[%clk 0:00:00]} 25. g4 {[%clk 0:00:00]}  Rh8 {[%clk 0:00:00]} 26. gxf5+ {[%clk 0:00:00]}  exf5 {[%clk 0:00:00]} 27. Kf2 {[%clk 0:00:00]}  Rxh1 {[%clk 0:00:00]} 28. Rxh1 {[%clk 0:00:00]}  Ne8 {[%clk 0:00:00]} 29. Bf4 {[%clk 0:00:00]}  Kf6 {[%clk 0:00:00]} 30. Rg1 {[%clk 0:00:00]}  g6 {[%clk 0:00:00]} 31. e4 {[%clk 0:00:00]}  Ng7 {[%clk 0:00:00]} 32. Bg5+ {[%clk 0:00:00]}  Kf7 {[%clk 0:00:00]} 33. Bh6 {[%clk 0:00:00]}  fxe4 {[%clk 0:00:00]} 34. fxe4 {[%clk 0:00:00]}  dxe4 {[%clk 0:00:00]} 35. Bxe4 {[%clk 0:00:00]}  Nf5 {[%clk 0:00:00]} 36. Bxf5 {[%clk 0:00:00]}  gxf5 {[%clk 0:00:00]} 37. Rg7+ {[%clk 0:00:00]}  Ke6 {[%clk 0:00:00]} 38. Rg6+ {[%clk 0:00:00]}  Kf7 {[%clk 0:00:00]} 39. Rg7+ {[%clk 0:00:00]}  Ke6 {[%clk 0:00:00]} 40. Bg5 {[%clk 0:00:00]}  Re8 {[%clk 0:00:00]} 41. Kf3 {[%clk 0:00:00]}  Nf6 {[%clk 0:00:00]} 42. Bxf6 {[%clk 0:00:00]}  Kxf6 {[%clk 0:00:00]} 43. Rxb7 {[%clk 0:00:00]}  Rd8 {[%clk 0:00:00]} 44. Rb6 {[%clk 0:00:00]}  Rxd4 {[%clk 0:00:00]} 45. Rxc6+ {[%clk 0:00:00]}  Ke5 {[%clk 0:00:00]} 46. Rxa6 {[%clk 0:00:00]}  Rd3+ {[%clk 0:00:00]} 47. Ke2 {[%clk 0:00:00]}  Rb3 {[%clk 0:00:00]} 48. Rb6 {[%clk 0:00:00]}  Rh3 {[%clk 0:00:00]} 49. a6 {[%clk 0:00:00]}  Ke4 {[%clk 0:00:00]} 50. Rb4+ {[%clk 0:00:00]}  Ke5 {[%clk 0:00:00]} 51. a7 {[%clk 0:00:00]}  Rh2+ {[%clk 0:00:00]} 52. Kf1 {[%clk 0:00:00]}  Rh1+ {[%clk 0:00:00]} 53. Kg2 {[%clk 0:00:00]}  Ra1 {[%clk 0:00:00]} 54. Rb7 {[%clk 0:00:00]}  Kd5 {[%clk 0:00:00]} 55. b4 {[%clk 0:00:00]}  Kc6 {[%clk 0:00:00]} 56. Rf7 {[%clk 0:00:00]}  Ra3 {[%clk 0:00:00]} 57. Kf2 {[%clk 0:00:00]}  Kb5 {[%clk 0:00:00]} 58. Ke2 {[%clk 0:00:00]}  Kxb4 {[%clk 0:00:00]} 59. c6 {[%clk 0:00:00]}  Kb5 {[%clk 0:00:00]} 60. c7 {[%clk 0:00:00]}  Rxa7 {[%clk 0:00:00]} 61. c8=Q {[%clk 0:00:00]}  Rxf7 {[%clk 0:00:00]} 62. Qe8+ {[%clk 0:00:00]} 1-0


[Site "https://www.chess.com"]

[Event "Titled Tuesday Blitz August 16 Late 2022"]
[White "Tristan, Leonardo"]
[Black "D`Arruda, Ricardo D."]
[WhiteFideId "113816"]
[BlackFideId "100692"]
[WhiteElo "2404"]
[BlackElo "2502"]
[Result "1-0"]
[Round "01"]
[TimeControl "180+1"]
[Date "2022.08.16"]
[WhiteClock "0:01:00"]
[BlackClock "0:00:18"]

1. d4 {[%clk 0:02:58]}  Nf6 {[%clk 0:02:58]} 2. Nf3 {[%clk 0:02:58]}  d5 {[%clk 0:02:56]} 3. Bf4 {[%clk 0:02:59]}  c6 {[%clk 0:02:56]} 4. e3 {[%clk 0:02:59]}  Qb6 {[%clk 0:02:55]} 5. Qc1 {[%clk 0:02:58]}  g6 {[%clk 0:02:54]} 6. c4 {[%clk 0:02:58]}  Bg7 {[%clk 0:02:51]} 7. Nc3 {[%clk 0:02:58]}  O-O {[%clk 0:02:48]} 8. Be2 {[%clk 0:02:58]}  Bf5 {[%clk 0:02:41]} 9. O-O {[%clk 0:02:58]}  Ne4 {[%clk 0:02:41]} 10. c5 {[%clk 0:02:32]}  Qd8 {[%clk 0:02:17]} 11. b4 {[%clk 0:02:31]}  Nd7 {[%clk 0:02:14]} 12. Nxe4 {[%clk 0:02:20]}  Bxe4 {[%clk 0:02:15]} 13. Nd2 {[%clk 0:02:19]}  Bf5 {[%clk 0:02:13]} 14. g4 {[%clk 0:02:19]}  Be6 {[%clk 0:02:09]} 15. h3 {[%clk 0:02:05]}  f6 {[%clk 0:02:05]} 16. b5 {[%clk 0:01:53]}  Bf7 {[%clk 0:02:03]} 17. Bg3 {[%clk 0:01:53]}  e5 {[%clk 0:02:01]} 18. Nb3 {[%clk 0:01:53]}  Be6 {[%clk 0:01:50]} 19. a4 {[%clk 0:01:52]}  f5 {[%clk 0:01:47]} 20. dxe5 {[%clk 0:01:48]}  Nxe5 {[%clk 0:01:44]} 21. Nd4 {[%clk 0:01:48]}  Bd7 {[%clk 0:01:42]} 22. Qd1 {[%clk 0:01:44]}  fxg4 {[%clk 0:01:31]} 23. hxg4 {[%clk 0:01:45]}  Qc8 {[%clk 0:01:30]} 24. f3 {[%clk 0:01:42]}  h5 {[%clk 0:01:17]} 25. gxh5 {[%clk 0:01:40]}  gxh5 {[%clk 0:01:18]} 26. Kh2 {[%clk 0:01:34]}  Ng6 {[%clk 0:01:14]} 27. Rg1 {[%clk 0:01:32]}  Qe8 {[%clk 0:00:54]} 28. Bd6 {[%clk 0:01:10]}  Qxe3 {[%clk 0:00:36]} 29. Rxg6 {[%clk 0:01:06]}  Rf4 {[%clk 0:00:20]} 30. Rxg7+ {[%clk 0:00:59]}  Kxg7 {[%clk 0:00:18]} 31. Qg1+ {[%clk 0:01:00]} 1-0


[Site "https://www.chess.com"]

[Event "Titled Tuesday Blitz August 16 Late 2022"]
[White "Urbina Perez, Juan Antonio"]
[Black "Gomez Ledo, Roberto Carlos"]
[WhiteFideId "2217368"]
[BlackFideId "3507076"]
[WhiteElo "2192"]
[BlackElo "2379"]
[Result "1/2-1/2"]
[Round "01"]
[TimeControl "180+1"]
[Date "2022.08.18"]
[WhiteClock "0:00:00"]
[BlackClock "0:00:00"]

1. e4 {[%clk 0:00:00]}  d6 {[%clk 0:00:00]} 2. d4 {[%clk 0:00:00]}  Nf6 {[%clk 0:00:00]} 3. f3 {[%clk 0:00:00]}  c5 {[%clk 0:00:00]} 4. dxc5 {[%clk 0:00:00]}  dxc5 {[%clk 0:00:00]} 5. Qxd8+ {[%clk 0:00:00]}  Kxd8 {[%clk 0:00:00]} 6. Be3 {[%clk 0:00:00]}  b6 {[%clk 0:00:00]} 7. Nd2 {[%clk 0:00:00]}  Nc6 {[%clk 0:00:00]} 8. O-O-O {[%clk 0:00:00]}  Kc7 {[%clk 0:00:00]} 9. Ne2 {[%clk 0:00:00]}  e5 {[%clk 0:00:00]} 10. Nc3 {[%clk 0:00:00]}  Be6 {[%clk 0:00:00]} 11. Bc4 {[%clk 0:00:00]}  a6 {[%clk 0:00:00]} 12. Bxe6 {[%clk 0:00:00]}  fxe6 {[%clk 0:00:00]} 13. Ne2 {[%clk 0:00:00]}  Nd4 {[%clk 0:00:00]} 14. Rhe1 {[%clk 0:00:00]}  b5 {[%clk 0:00:00]} 15. c3 {[%clk 0:00:00]}  Nxe2+ {[%clk 0:00:00]} 16. Rxe2 {[%clk 0:00:00]}  c4 {[%clk 0:00:00]} 17. Nf1 {[%clk 0:00:00]}  Be7 {[%clk 0:00:00]} 18. Red2 {[%clk 0:00:00]}  Rhd8 {[%clk 0:00:00]} 19. Rxd8 {[%clk 0:00:00]}  Bxd8 {[%clk 0:00:00]} 20. Kc2 {[%clk 0:00:00]}  Be7 {[%clk 0:00:00]} 21. Bg5 {[%clk 0:00:00]}  h6 {[%clk 0:00:00]} 22. Bxf6 {[%clk 0:00:00]}  gxf6 {[%clk 0:00:00]} 23. g4 {[%clk 0:00:00]}  Bc5 {[%clk 0:00:00]} 24. Ng3 {[%clk 0:00:00]}  Be3 {[%clk 0:00:00]} 25. Nh5 {[%clk 0:00:00]}  f5 {[%clk 0:00:00]} 26. Ng7 {[%clk 0:00:00]}  fxg4 {[%clk 0:00:00]} 27. fxg4 {[%clk 0:00:00]}  Kc6 {[%clk 0:00:00]} 28. Nxe6 {[%clk 0:00:00]}  Re8 {[%clk 0:00:00]} 29. Nd8+ {[%clk 0:00:00]}  Kc7 {[%clk 0:00:00]} 30. Nf7 {[%clk 0:00:00]}  Bf4 {[%clk 0:00:00]} 31. Nd6 {[%clk 0:00:00]}  Rg8 {[%clk 0:00:00]} 32. h3 {[%clk 0:00:00]}  h5 {[%clk 0:00:00]} 33. a4 {[%clk 0:00:00]}  hxg4 {[%clk 0:00:00]} 34. hxg4 {[%clk 0:00:00]}  Rxg4 {[%clk 0:00:00]} 35. axb5 {[%clk 0:00:00]}  Rg2+ {[%clk 0:00:00]} 36. Kb1 {[%clk 0:00:00]}  axb5 {[%clk 0:00:00]} 37. Nxb5+ {[%clk 0:00:00]}  Kc6 {[%clk 0:00:00]} 38. Na3 {[%clk 0:00:00]}  Re2 {[%clk 0:00:00]} 39. Nxc4 {[%clk 0:00:00]}  Rxe4 {[%clk 0:00:00]} 40. Na3 {[%clk 0:00:00]}  Re2 {[%clk 0:00:00]} 41. Nc2 {[%clk 0:00:00]}  Kc5 {[%clk 0:00:00]} 42. Re1 {[%clk 0:00:00]}  Rh2 {[%clk 0:00:00]} 43. Ne3 {[%clk 0:00:00]}  e4 {[%clk 0:00:00]} 44. Ng4 {[%clk 0:00:00]}  Rg2 {[%clk 0:00:00]} 45. Nf6 {[%clk 0:00:00]}  e3 {[%clk 0:00:00]} 46. Nh5 {[%clk 0:00:00]}  Bg5 {[%clk 0:00:00]} 47. Ng7 {[%clk 0:00:00]}  Kc4 {[%clk 0:00:00]} 48. Ne6 {[%clk 0:00:00]}  Bh6 {[%clk 0:00:00]} 49. Nd4 {[%clk 0:00:00]}  Kd3 {[%clk 0:00:00]} 50. Rd1+ {[%clk 0:00:00]}  Ke4 {[%clk 0:00:00]} 51. Re1 {[%clk 0:00:00]}  Kd3 {[%clk 0:00:00]} 52. Kc1 {[%clk 0:00:00]}  e2+ {[%clk 0:00:00]} 53. Kb1 {[%clk 0:00:00]}  Bd2 {[%clk 0:00:00]} 54. Rxe2 {[%clk 0:00:00]}  Rxe2 {[%clk 0:00:00]} 55. Nxe2 {[%clk 0:00:00]}  Kxe2 {[%clk 0:00:00]} 56. Ka2 {[%clk 0:00:00]}  Kd3 {[%clk 0:00:00]} 57. Kb3 {[%clk 0:00:00]}  Be3 {[%clk 0:00:00]} 58. Kb4 {[%clk 0:00:00]}  Bc1 {[%clk 0:00:00]} 59. b3 {[%clk 0:00:00]}  Bd2 {[%clk 0:00:00]} 60. Kc5 {[%clk 0:00:00]}  Bxc3 {[%clk 0:00:00]} 61. b4 {[%clk 0:00:00]}  Bxb4+ {[%clk 0:00:00]} 1/2-1/2


[Site "https://www.chess.com"]